fUST/lending_fUST_20240927
["ID","MTS","AMOUNT","RATE_DAILY","PERIOD"]
[339247649,1727398246181,-500.0,0.00021,30]
[339247651,1727398246190,-500.0,0.00021,30]
[339247653,1727398246199,-500.0,0.00021,30]
[339247655,1727398246208,-500.0,0.00021,30]
[339247657,1727398246217,-500.0,0.00021,30]
[339247659,1727398246227,-500.0,0.00021,30]
[339247660,1727398246236,-500.0,0.00021,30]
[339247662,1727398246245,-500.0,0.00021,30]
[339247664,1727398246254,-500.0,0.00021,30]
[339247666,1727398246264,-510.77584455,0.00021,30]
[339247668,1727398246273,-542.56214247,0.00021,30]
[339247669,1727398246283,-881.5074639,0.00021,30]
[339247671,1727398246293,-600.0,0.00021,30]
[339247673,1727398246302,-600.0,0.00021,30]
[339247674,1727398246312,-600.0,0.00021,30]
[339247676,1727398246321,-600.0,0.00021,30]
[339247678,1727398246331,-600.0,0.00021,30]
[339247680,1727398246340,-600.0,0.00021,30]
[339247682,1727398246349,-600.0,0.00021,30]
[339247684,1727398246359,-600.0,0.00021,30]
[339247686,1727398246368,-600.0,0.00021,30]
[339247687,1727398246377,-600.0,0.00021,30]
[339247689,1727398246386,-600.0,0.00021,30]
[339247691,1727398246396,-700.0,0.00021,30]
[339247693,1727398246406,-600.0,0.00021,30]
[339247695,1727398246414,-700.0,0.00021,30]
[339247697,1727398246424,-1000.0,0.00021,30]
[339247698,1727398246433,-600.0,0.00021,30]
[339247700,1727398246442,-700.0,0.00021,30]
[339247702,1727398246451,-1000.0,0.00021,30]
[339247703,1727398246461,-936.12036511,0.00021,30]
[339247704,1727398246470,-700.0,0.00021,30]
[339247705,1727398246479,-1000.0,0.00021,30]
[339247706,1727398246488,-700.0,0.00021,30]
[339247707,1727398246497,-1000.0,0.00021,30]
[339247708,1727398246505,-700.0,0.00021,30]
[339247709,1727398246515,-1000.0,0.00021,30]
[339247710,1727398246524,-700.0,0.00021,30]
[339247711,1727398246533,-1000.0,0.00021,30]
[339247712,1727398246543,-700.0,0.00021,30]
[339247713,1727398246555,-1000.0,0.00021,30]
[339247714,1727398246565,-700.0,0.00021,30]
[339247715,1727398246574,-1000.0,0.00021,30]
[339247716,1727398246583,-700.0,0.00021,30]
[339247717,1727398246593,-150.112233,0.00021,3]
[339247719,1727398246602,-1000.0,0.00021,30]
[339247720,1727398246611,-700.0,0.00021,30]
[339247722,1727398246620,-1000.0,0.00021,30]
[339247723,1727398246632,-700.0,0.00021,30]
[339247724,1727398246641,-1091.82928336,0.00021,30]
[339247725,1727398246650,-1000.0,0.00021,30]
[339247726,1727398246659,-1000.0,0.00021,30]
[339247727,1727398246668,-1000.0,0.00021,30]
[339247728,1727398246678,-1002.78456026,0.00021,30]
[339247729,1727398246687,-3000.0,0.00021,2]
[339247730,1727398246696,-151.0,0.00021,2]
[339247731,1727398246707,-151.0,0.00021,2]
[339247732,1727398246716,-151.0,0.00021,2]
[339247733,1727398246725,-151.0,0.00021,2]
[339247734,1727398246734,-194.92418,0.00021,2]
[339247735,1727398246743,-194.92418,0.00021,2]
[339247736,1727398246753,-151.0,0.00021,2]
[339247737,1727398246763,-153.197665,0.00021,2]
[339247738,1727398246772,-223.568564,0.00021,2]
[339247739,1727398246782,-153.197665,0.00021,2]
[339247740,1727398246791,-151.0,0.00021,2]
[339247741,1727398246800,-223.568564,0.00021,2]
[339247742,1727398246809,-233.137108,0.00021,2]
[339247743,1727398246818,-179.341872,0.00021,2]
[339247744,1727398246828,-151.0,0.00021,2]
[339247745,1727398246837,-151.0,0.00021,2]
[339247746,1727398246846,-151.0,0.00021,2]
[339247747,1727398246855,-151.0,0.00021,2]
[339247748,1727398246864,-500.0,0.00021,30]
[339247749,1727398246873,-500.0,0.00021,30]
[339247750,1727398246882,-500.0,0.00021,30]
[339247751,1727398246892,-500.0,0.00021,30]
[339247752,1727398246901,-500.0,0.00021,30]
[339247753,1727398246911,-500.0,0.00021,30]
[339247754,1727398246920,-500.0,0.00021,30]
[339247755,1727398246929,-500.0,0.00021,30]
[339247756,1727398246938,-500.0,0.00021,30]
[339247757,1727398246947,-500.0,0.00021,30]
[339247758,1727398246957,-500.0,0.00021,30]
[339247759,1727398246966,-500.0,0.00021,30]
[339247760,1727398246975,-500.0,0.00021,30]
[339247761,1727398246984,-500.0,0.00021,30]
[339247762,1727398246993,-559.49293444,0.00021,30]
[339247763,1727398247003,-500.0,0.00021,30]
[339247764,1727398247012,-500.0,0.00021,30]
[339247765,1727398247021,-500.0,0.00021,30]
[339247766,1727398247030,-500.0,0.00021,30]
[339247767,1727398247039,-546.44831288,0.00021,30]
[339247768,1727398247057,-500.0,0.00021,30]
[339247769,1727398247066,-500.0,0.00021,30]
[339247770,1727398247075,-500.0,0.00021,30]
[339247771,1727398247083,-500.0,0.00021,30]
[339247772,1727398247092,-500.0,0.00021,30]
[339247773,1727398247102,-500.0,0.00021,30]
[339247774,1727398247111,-600.0,0.00021,30]
[339247775,1727398247120,-600.0,0.00021,30]
[339247776,1727398247130,-600.0,0.00021,30]
[339247777,1727398247139,-500.0,0.00021,30]
[339247778,1727398247148,-600.0,0.00021,30]
[339247779,1727398247157,-600.0,0.00021,30]
[339247780,1727398247168,-503.94827431,0.00021,30]
[339247781,1727398247177,-600.0,0.00021,30]
[339247782,1727398247187,-600.0,0.00021,30]
[339247783,1727398247196,-503.32546936,0.00021,30]
[339247784,1727398247205,-600.0,0.00021,30]
[339247785,1727398247214,-600.0,0.00021,30]
[339247786,1727398247224,-499.3,0.00021,30]
[339247787,1727398247233,-600.0,0.00021,30]
[339247788,1727398247243,-600.0,0.00021,30]
[339247789,1727398247252,-500.0,0.00021,30]
[339247790,1727398247261,-500.0,0.00021,30]
[339247791,1727398247270,-600.0,0.00021,30]
[339247792,1727398247280,-503.8324005,0.00021,30]
[339247793,1727398247289,-500.0,0.00021,30]
[339247794,1727398247300,-600.0,0.00021,30]
[339247795,1727398247310,-600.0,0.00021,30]
[339247796,1727398247320,-1000.0,0.00021,30]
[339247797,1727398247330,-500.0,0.00021,30]
[339247798,1727398247339,-600.0,0.00021,30]
[339247799,1727398247349,-1000.0,0.00021,30]
[339247800,1727398247359,-1000.0,0.00021,30]
[339247801,1727398247369,-700.0,0.00021,30]
[339247802,1727398247379,-700.0,0.00021,30]
[339247803,1727398247389,-700.0,0.00021,30]
[339247804,1727398247398,-1000.0,0.00021,30]
[339247805,1727398247408,-700.0,0.00021,30]
[339247806,1727398247418,-700.0,0.00021,30]
[339247807,1727398247427,-1000.0,0.00021,30]
[339247808,1727398247436,-700.0,0.00021,30]
[339247809,1727398247446,-1000.0,0.00021,30]
[339247810,1727398247455,-700.0,0.00021,30]
[339247811,1727398247465,-1000.0,0.00021,30]
[339247812,1727398247474,-700.0,0.00021,30]
[339247813,1727398247484,-1000.0,0.00021,30]
[339247814,1727398247493,-700.0,0.00021,30]
[339247815,1727398247502,-1000.0,0.00021,30]
[339247816,1727398247512,-700.0,0.00021,30]
[339247817,1727398247522,-1000.0,0.00021,30]
[339247818,1727398247531,-700.0,0.00021,30]
[339247819,1727398247541,-1000.0,0.00021,30]
[339247820,1727398247551,-1000.0,0.00021,30]
[339247821,1727398247560,-700.0,0.00021,30]
[339247822,1727398247569,-700.0,0.00021,30]
[339247823,1727398247579,-1000.0,0.00021,30]
[339247824,1727398247588,-700.0,0.00021,30]
[339247825,1727398247598,-1000.0,0.00021,30]
[339247826,1727398247607,-499.3,0.00021,30]
[339247827,1727398247617,-3000.0,0.0002101,2]
[339247828,1727398247628,-3000.0,0.0002102,2]
[339247829,1727398247639,-3000.0,0.0002103,2]
[339247830,1727398247649,-3000.0,0.0002104,2]
[339247831,1727398247659,-150.927915,0.00021047,2]
[339247832,1727398247668,-3000.0,0.0002105,2]
[339247833,1727398247678,-151.0,0.00021067,2]
[339247834,1727398247689,-151.0,0.00021085,2]
[339247835,1727398247698,-151.0,0.00021085,2]
[339247836,1727398247709,-6574.63436527,0.00021085,3]
[339247837,1727398247719,-500.0,0.00021095,2]
[339247838,1727398247728,-500.0,0.00021095,2]
[339247839,1727398247738,-682.4,0.00021095,2]
[339247840,1727398247747,-1246.67,0.00021095,2]
[339247841,1727398247757,-1387.08,0.00021095,2]
[339247842,1727398247766,-2195.41,0.00021095,2]
[339247843,1727398247775,-700.56,0.00021095,2]
[339247844,1727398247785,-1326.46,0.00021095,2]
[339247845,1727398247796,-1000.0,0.00021095,2]
[339247846,1727398247806,-527.34,0.00021095,2]
[339247847,1727398247816,-247.83,0.00021095,2]
[339247848,1727398247826,-697.71,0.00021095,2]
[339247849,1727398247835,-2723.78,0.00021095,2]
[339247850,1727398247844,-500.0,0.00021095,2]
[339247851,1727398247854,-500.0,0.00021095,2]
[339247852,1727398247864,-619.36062787,0.00021095,2]
[339247853,1727398247873,-659.45,0.00021095,2]
[339247854,1727398247883,-25556.53,0.00021095,2]
[339247855,1727398247892,-986.52,0.00021095,2]
[339247856,1727398247902,-4476.93,0.00021095,2]
[339247857,1727398247911,-1000.0,0.00021121,2]
[339247858,1727398247921,-150.112233,0.000212,5]
[339247859,1727398247932,-6260.5328975,0.00021264,2]
[339247860,1727398247944,-150.112233,0.000213,3]
[339247861,1727398247953,-1500.0,0.00021322,2]
[339247862,1727398247963,-1500.0,0.00021322,2]
[339247863,1727398247974,-6574.63436527,0.00021335,3]
[339247864,1727398247984,-600.0,0.00021339,3]
[339247865,1727398247994,-526.0,0.00021343,2]
[339247866,1727398248004,-526.0,0.00021343,2]
[339247867,1727398248014,-526.0,0.00021343,2]
[339247868,1727398248025,-526.0,0.00021343,2]
[339247869,1727398248034,-526.0,0.00021343,2]
[339247870,1727398248045,-526.0,0.00021343,2]
[339247871,1727398248055,-526.0,0.00021343,2]
[339247872,1727398248064,-526.0,0.00021343,2]
[339247873,1727398248074,-526.0,0.00021343,2]
[339247874,1727398248084,-526.0,0.00021343,2]
[339247875,1727398248093,-526.0,0.00021343,2]
[339247876,1727398248103,-526.0,0.00021343,2]
[339247877,1727398248113,-526.0,0.00021343,2]
[339247878,1727398248123,-153.0,0.00021343,2]
[339247879,1727398248133,-153.0,0.00021343,2]
[339247880,1727398248142,-153.0,0.00021343,2]
[339247881,1727398248152,-153.0,0.00021343,2]
[339247882,1727398248162,-526.0,0.00021344,2]
[339247883,1727398248171,-526.0,0.00021344,2]
[339247884,1727398248182,-526.0,0.00021344,2]
[339247885,1727398248192,-526.0,0.00021344,2]
[339247886,1727398248201,-526.0,0.00021344,2]
[339247887,1727398248211,-526.0,0.00021344,2]
[339247888,1727398248221,-526.0,0.00021344,2]
[339247889,1727398248231,-526.0,0.00021344,2]
[339247890,1727398248241,-526.0,0.00021344,2]
[339247891,1727398248250,-526.0,0.00021344,2]
[339247892,1727398248352,-526.0,0.00021344,2]
[339247893,1727398248363,-526.0,0.00021344,2]
[339247894,1727398248372,-526.0,0.00021344,2]
[339247895,1727398248383,-153.0,0.00021344,2]
[339247896,1727398248393,-153.0,0.00021344,2]
[339247897,1727398248403,-153.0,0.00021344,2]
[339247898,1727398248413,-153.0,0.00021344,2]
[339247899,1727398248423,-151.0,0.00021345,2]
[339247900,1727398248432,-151.0,0.00021345,2]
[339247901,1727398248442,-151.0,0.00021345,2]
[339247902,1727398248452,-151.0,0.00021345,2]
[339247903,1727398248462,-151.0,0.00021345,2]
[339247904,1727398248472,-526.0,0.00021345,2]
[339247905,1727398248482,-526.0,0.00021345,2]
[339247906,1727398248492,-526.0,0.00021345,2]
[339247907,1727398248502,-526.0,0.00021345,2]
[339247908,1727398248513,-526.0,0.00021345,2]
[339247909,1727398248523,-526.0,0.00021345,2]
[339247910,1727398248532,-526.0,0.00021345,2]
[339247911,1727398248542,-526.0,0.00021345,2]
[339247912,1727398248552,-526.0,0.00021345,2]
[339247913,1727398248562,-526.0,0.00021345,2]
[339247914,1727398248572,-526.0,0.00021345,2]
[339247915,1727398248582,-526.0,0.00021345,2]
[339247916,1727398248591,-526.0,0.00021345,2]
[339247917,1727398248601,-526.0,0.00021345,2]
[339247918,1727398248610,-526.0,0.00021345,2]
[339247919,1727398248619,-153.0,0.00021345,2]
[339247920,1727398248632,-153.0,0.00021345,2]
[339247921,1727398248642,-153.0,0.00021345,2]
[339247922,1727398248652,-153.0,0.00021345,2]
[339247923,1727398248662,-526.0,0.00021346,2]
[339247924,1727398248672,-526.0,0.00021346,2]
[339247925,1727398248683,-526.0,0.00021346,2]
[339247926,1727398248692,-526.0,0.00021346,2]
[339247927,1727398248701,-526.0,0.00021346,2]
[339247928,1727398248714,-526.0,0.00021346,2]
[339247929,1727398248724,-526.0,0.00021346,2]
[339247930,1727398248734,-526.0,0.00021346,2]
[339247931,1727398248743,-153.0,0.00021346,2]
[339247932,1727398248753,-153.0,0.00021346,2]
[339247933,1727398248762,-153.0,0.00021346,2]
[339247934,1727398248771,-153.0,0.00021346,2]
[339247935,1727398248781,-151.0,0.00021348,2]
[339247936,1727398248790,-151.0,0.00021358,2]
[339247937,1727398248800,-151.0,0.00021358,2]
[339247938,1727398248809,-151.0,0.00021358,2]
[339247939,1727398248819,-6574.63436527,0.00021359,3]
[339247940,1727398248829,-151.0,0.00021361,2]
[339247941,1727398248838,-151.0,0.00021361,2]
[339247942,1727398248847,-453.96498218,0.00021369,2]
[339247943,1727398248857,-500.0,0.00021369,2]
[339247944,1727398248867,-682.4,0.00021369,2]
[339247945,1727398248877,-1246.67,0.00021369,2]
[339247946,1727398248887,-1387.08,0.00021369,2]
[339247947,1727398248896,-2195.41,0.00021369,2]
[339247948,1727398248906,-700.56,0.00021369,2]
[339247949,1727398248916,-1326.46,0.00021369,2]
[339247950,1727398248925,-151.0,0.00021369,2]
[339247951,1727398248935,-194.92418,0.00021369,2]
[339247952,1727398248945,-194.92418,0.00021369,2]
[339247953,1727398248955,-1000.0,0.00021369,2]
[339247954,1727398248965,-151.0,0.00021369,2]
[339247955,1727398248975,-527.34,0.00021369,2]
[339247956,1727398248984,-247.83,0.00021369,2]
[339247957,1727398248995,-697.71,0.00021369,2]
[339247958,1727398249004,-153.197665,0.00021369,2]
[339247959,1727398249015,-223.568564,0.00021369,2]
[339247960,1727398249025,-153.197665,0.00021369,2]
[339247961,1727398249035,-223.568564,0.00021369,2]
[339247962,1727398249046,-2723.78,0.00021369,2]
[339247963,1727398249056,-500.0,0.00021369,2]
[339247964,1727398249066,-151.0,0.00021369,2]
[339247965,1727398249076,-151.0,0.00021369,2]
[339247966,1727398249088,-151.0,0.00021369,2]
[339247967,1727398249098,-659.45,0.00021369,2]
[339247968,1727398249107,-25556.53,0.00021369,2]
[339247969,1727398249117,-986.52,0.00021369,2]
[339247970,1727398249127,-4476.93,0.00021369,2]
[339247971,1727398249137,-150.927915,0.00021387,2]
[339247972,1727398249146,-180.887805,0.00021387,2]
[339247973,1727398249156,-150.112233,0.000214,3]
[339247974,1727398249166,-6260.5328975,0.00021476,2]
[339247975,1727398249176,-465.61843093,0.00021493,2]
[339247976,1727398249186,-336.0,0.0002154,5]
[339247977,1727398249196,-587.0,0.00021625,2]
[339247978,1727398249206,-151.0,0.00021629,2]
[339247979,1727398249216,-500.0,0.00021643,2]
[339247980,1727398249226,-682.4,0.00021643,2]
[339247981,1727398249236,-1246.67,0.00021643,2]
[339247982,1727398249245,-1387.08,0.00021643,2]
[339247983,1727398249255,-2195.41,0.00021643,2]
[339247984,1727398249265,-700.56,0.00021643,2]
[339247985,1727398249276,-1326.46,0.00021643,2]
[339247986,1727398249287,-151.0,0.00021643,2]
[339247987,1727398249304,-151.0,0.00021643,2]
[339247988,1727398249314,-1000.0,0.00021643,2]
[339247989,1727398249324,-527.34,0.00021643,2]
[339247990,1727398249334,-247.83,0.00021643,2]
[339247991,1727398249344,-697.71,0.00021643,2]
[339247992,1727398249354,-2723.78,0.00021643,2]
[339247993,1727398249364,-500.0,0.00021643,2]
[339247994,1727398249373,-659.45,0.00021643,2]
[339247995,1727398249383,-25556.53,0.00021643,2]
[339247996,1727398249393,-151.0,0.00021643,2]
[339247997,1727398249402,-986.52,0.00021643,2]
[339247998,1727398249412,-4476.93,0.00021643,2]
[339247999,1727398249422,-263.27608,0.00021643,2]
[339248000,1727398249432,-6260.5328975,0.0002166,2]
[339248001,1727398249442,-154.79661188,0.00021665,2]
[339248002,1727398249452,-150.112233,0.000217,5]
[339248003,1727398249462,-1217.0,0.00021767,2]
[339248004,1727398249472,-11598.877,0.00021767,2]
[339248005,1727398249482,-2158.82774869,0.00021779,2]
[339248006,1727398249491,-1000.0,0.00021881,2]
[339248007,1727398249501,-1287.18,0.0002189,7]
[339248008,1727398249511,-1287.18,0.0002189,7]
[339248009,1727398249521,-1287.18,0.0002189,7]
[339248010,1727398249530,-1287.18,0.0002189,7]
[339248011,1727398249540,-1287.18,0.0002189,7]
[339248012,1727398249551,-1287.18,0.0002189,7]
[339248013,1727398249560,-1287.18,0.0002189,7]
[339248014,1727398249570,-1287.18,0.0002189,7]
[339248015,1727398249579,-1287.18,0.0002189,7]
[339248016,1727398249589,-1287.18,0.0002189,7]
[339248017,1727398249598,-1287.18,0.0002189,7]
[339248018,1727398249607,-1287.18,0.0002189,7]
[339248019,1727398249617,-1287.18,0.0002189,7]
[339248020,1727398249629,-1287.18,0.0002189,7]
[339248021,1727398249640,-1287.18,0.0002189,7]
[339248022,1727398249651,-1287.18,0.0002189,7]
[339248023,1727398249661,-1287.18,0.0002189,7]
[339248024,1727398249671,-1287.18,0.0002189,7]
[339248025,1727398249680,-1287.18,0.0002189,7]
[339248026,1727398249690,-1287.18,0.0002189,7]
[339248027,1727398249700,-1287.18,0.0002189,7]
[339248028,1727398249711,-1287.18,0.0002189,7]
[339248029,1727398249720,-1287.18,0.0002189,7]
[339248030,1727398249730,-1287.29394155,0.0002189,7]
[339248031,1727398249739,-152.65,0.000219,31]
[339248032,1727398249748,-152.65,0.000219,31]
[339248033,1727398249758,-152.65,0.000219,31]
[339248034,1727398249767,-152.65,0.000219,31]
[339248035,1727398249777,-152.65,0.000219,31]
[339248036,1727398249789,-152.65,0.000219,31]
[339248037,1727398249802,-152.65,0.000219,31]
[339248038,1727398249811,-152.65,0.000219,31]
[339248039,1727398249820,-152.65,0.000219,31]
[339248040,1727398249830,-152.65,0.000219,31]
[339248041,1727398249840,-152.65,0.000219,31]
[339248042,1727398249849,-152.65,0.000219,31]
[339248043,1727398249859,-152.65,0.000219,31]
[339248044,1727398249869,-152.65,0.000219,31]
[339248045,1727398249878,-3391.29,0.000219,6]
[339248046,1727398249888,-151.0,0.0002191,2]
[339248047,1727398249898,-1000.0,0.00021912,2]
[339248048,1727398249907,-1000.0,0.00021916,2]
[339248049,1727398249917,-500.0,0.00021917,120]
[339248050,1727398249927,-500.0,0.00021917,120]
[339248051,1727398249936,-579.09,0.00021917,120]
[339248052,1727398249946,-500.0,0.00021917,2]
[339248053,1727398249955,-500.5765147,0.00021917,2]
[339248054,1727398249964,-750.99,0.00021917,2]
[339248055,1727398249974,-750.99,0.00021917,2]
[339248056,1727398249984,-750.99,0.00021917,2]
[339248057,1727398249993,-750.99,0.00021917,2]
[339248058,1727398250003,-750.99,0.00021917,2]
[339248059,1727398250012,-750.99,0.00021917,2]
[339248060,1727398250022,-750.99,0.00021917,2]
[339248061,1727398250031,-750.99,0.00021917,2]
[339248062,1727398250041,-750.99,0.00021917,2]
[339248063,1727398250054,-750.99,0.00021917,2]
[339248064,1727398250067,-750.99,0.00021917,2]
[339248065,1727398250077,-750.99,0.00021917,2]
[339248066,1727398250086,-750.99,0.00021917,2]
[339248067,1727398250096,-750.99,0.00021917,2]
[339248068,1727398250108,-750.99,0.00021917,2]
[339248069,1727398250118,-750.99,0.00021917,2]
[339248070,1727398250129,-750.99,0.00021917,2]
[339248071,1727398250139,-750.99,0.00021917,2]
[339248072,1727398250148,-750.99,0.00021917,2]
[339248073,1727398250157,-750.99,0.00021917,2]
[339248074,1727398250166,-750.99,0.00021917,2]
[339248075,1727398250176,-750.99,0.00021917,2]
[339248076,1727398250185,-750.99,0.00021917,2]
[339248077,1727398250194,-751.15171098,0.00021917,2]
[339248078,1727398250203,-682.4,0.00021917,2]
[339248079,1727398250213,-1000.0,0.00021917,5]
[339248080,1727398250222,-1000.0,0.00021917,5]
[339248081,1727398250232,-1000.0,0.00021917,5]
[339248082,1727398250243,-1000.0,0.00021917,5]
[339248083,1727398250252,-817.6377036,0.00021917,5]
[339248084,1727398250261,-1246.67,0.00021917,2]
[339248085,1727398250271,-1387.08,0.00021917,2]
[339248086,1727398250281,-2195.41,0.00021917,2]
[339248087,1727398250290,-700.56,0.00021917,2]
[339248088,1727398250302,-1326.46,0.00021917,2]
[339248089,1727398250311,-500.0,0.00021917,2]
[339248090,1727398250320,-504.31479843,0.00021917,2]
[339248091,1727398250330,-194.92418,0.00021917,2]
[339248092,1727398250340,-194.92418,0.00021917,2]
[339248093,1727398250350,-151.0,0.00021917,2]
[339248094,1727398250360,-527.34,0.00021917,2]
[339248095,1727398250369,-247.83,0.00021917,2]
[339248096,1727398250379,-697.71,0.00021917,2]
[339248097,1727398250389,-153.197665,0.00021917,2]
[339248098,1727398250400,-500.0,0.00021917,2]
[339248099,1727398250410,-223.568564,0.00021917,2]
[339248100,1727398250421,-153.197665,0.00021917,2]
[339248101,1727398250432,-223.568564,0.00021917,2]
[339248102,1727398250443,-2723.78,0.00021917,2]
[339248103,1727398250454,-151.0,0.00021917,2]
[339248104,1727398250464,-264.168451,0.00021917,2]
[339248105,1727398250473,-151.0,0.00021917,2]
[339248106,1727398250483,-500.0,0.00021917,2]
[339248107,1727398250493,-151.0,0.00021917,2]
[339248108,1727398250503,-151.0,0.00021917,2]
[339248109,1727398250513,-151.0,0.00021917,2]
[339248110,1727398250522,-151.0,0.00021917,2]
[339248111,1727398250531,-151.0,0.00021917,2]
[339248112,1727398250541,-659.45,0.00021917,2]
[339248113,1727398250551,-4649.24628607,0.00021917,2]
[339248114,1727398250928,-500.0,0.00019178,2]
[339248115,1727398250937,-168.08696761,0.00019178,2]
[339248116,1727398252143,-331.91303239,0.00019178,2]
[339248117,1727398252155,-509.19869883,0.00019178,2]
[339248118,1727398252169,-500.0,0.00019178,2]
[339248119,1727398252181,-500.0,0.00019452,2]
[339248120,1727398252194,-263.37469876,0.00019452,2]
[339248121,1727398252206,-409.23853104,0.00019726,2]
[339248122,1727398252220,-271.297552,0.0002,2]
[339248123,1727398252232,-153.0,0.00021342,2]
[339248124,1727398252245,-153.0,0.00021342,2]
[339248125,1727398252255,-153.0,0.00021342,2]
[339248126,1727398252266,-153.0,0.00021342,2]
[339248127,1727398252278,-5450.86062298,0.00021917,2]
[339248128,1727398253052,-15456.42309095,0.00021917,2]
[339248129,1727398253062,-986.52,0.00021917,2]
[339248130,1727398253071,-3613.24853762,0.00021917,2]
[339248131,1727398253100,-27.54821627,0.00021917,2]
[339248136,1727398987439,-2743.4513211,0.00014302,2]
[339248137,1727399024776,-427.27106,0.00014302,2]
[339248138,1727399143136,-300.0,0.00014998,2]
[339248139,1727399143159,-300.0,0.00014998,2]
[339248140,1727399143185,-500.0,0.00014999,2]
[339248141,1727399143206,-75.4,0.00014999,2]
[339248142,1727399228099,-316.59770949,0.00014973,2]
[339248143,1727399240363,-2203.545952,0.00014238,2]
[339248144,1727399254100,-2203.545952,0.00014923,2]
[339248145,1727399254127,-183.40229051,0.00014973,2]
[339248146,1727399254148,-327.94885779,0.00014973,2]
[339248147,1727399263869,-318.1547084,0.00014127,2]
[339248149,1727399345107,-957.44444,0.00014127,2]
[339248150,1727399353124,-642.1168276,0.00014127,2]
[339248151,1727399353146,-206.63402172,0.00014973,2]
[339248152,1727399353168,-300.0,0.00014998,2]
[339248153,1727399353189,-300.0,0.00014998,2]
[339248154,1727399353210,-332.02627273,0.00014999,2]
[339248155,1727399353231,-177.31211469,0.00014999,2]
[339248156,1727399353252,-200.04681797,0.00014999,2]
[339248157,1727399353274,-454.35210236,0.00014999,2]
[339248158,1727399353300,-532.13787874,0.00014999,2]
[339248159,1727399353327,-500.0,0.00014999,2]
[339248160,1727399353348,-500.0,0.00014999,2]
[339248161,1727399353371,-500.0,0.00014999,2]
[339248162,1727399353395,-137.16474496,0.00014999,2]
[339248163,1727399357100,-362.83525504,0.00014999,2]
[339248164,1727399357126,-506.44587411,0.00014999,2]
[339248165,1727399357147,-500.0,0.00014999,2]
[339248166,1727399357169,-500.0,0.00014999,2]
[339248167,1727399357189,-15913.86993542,0.00015,2]
[339248168,1727399362163,-5544.38641698,0.00015,2]
[339248169,1727399363110,-58374.25831452,0.00015,2]
[339248170,1727399366104,-7095.71146758,0.00015,2]
[339248171,1727399366127,-4038.0850577,0.00015155,2]
[339248172,1727399366147,-299.34044194,0.00015355,2]
[339248173,1727399366168,-250.0,0.00015455,2]
[339248174,1727399366190,-250.0,0.00015497,2]
[339248175,1727399366212,-250.0,0.00015539,2]
[339248176,1727399366233,-250.0,0.00015582,2]
[339248177,1727399366254,-44533.1145425,0.00015597,2]
[339248178,1727399366275,-2203.545952,0.00015607,2]
[339248179,1727399366301,-250.0,0.00015624,2]